[Event "EYCC Open-U12 2019"]
[Site "Bratislava"]
[Date "2019.08.04"]
[Round "3.45"]
[White "Stevanovic, Jovan"]
[Black "Kisic, Dusan"]
[Result "0-1"]
[ECO "A21"]
[WhiteElo "1783"]
[BlackElo "1642"]
[Annotator "NA"]
[PlyCount "98"]
[EventDate "2019.08.02"]
[EventType "swiss"]
[EventCountry "SVK"]
[SourceTitle "playchess.com"]
[Source "ChessBase"]
[SourceQuality "1"]
[TimeControl "40/5400+30:1800+30"]

1. c4 {[%emt 0:00:00]} e5 {[%emt 0:00:00]} 2. Nc3 {[%emt 0:00:00]} Bb4 {[%emt 0:00:00]} 3. Nd5 {[%emt 0:00:10]} Be7 {[%emt 0:00:10]} 4. g3 {[%emt 0:01:02]} c6 {[%emt 0:01:28]} 5. Nxe7 {[%emt 0:00:19]} Qxe7 {[%emt 0:00:05]} 6. Bg2 {[%emt 0:00:33]} Nf6 {[%emt 0:00:06]} 7. d3 {[%emt 0:03:15]} O-O {[%emt 0:00:33]} 8. Nf3 {[%emt 0:00:05]} d6 {[%emt 0:02:14]} 9. O-O {[%emt 0:00:08]} h6 {[%emt 0:00:32]} 10. Rb1 {[%emt 0:01:58]} Na6 {[%emt 0:00:07]} 11. b4 {[%emt 0:00:27]} Nc7 {[%emt 0:00:07]} 12. Bd2 {[%emt 0:07:39]} Bd7 {[%emt 0:06:35]} 13. Bc3 {[%emt 0:02:37]} Rfe8 {[%emt 0:10:28]} 14. Qb3 {[%emt 0:07:46]} Ne6 {[%emt 0:02:51]} 15. e4 {[%emt 0:07:01]} Nf8 {[%emt 0:00:49]} 16. Nh4 {[%emt 0:02:43]} Be6 {[%emt 0:04:47]} 17. Qc2 {[%emt 0:01:13]} Qc7 {[%emt 0:00:36]} 18. f4 {[%emt 0:00:28]} Qb6+ {[%emt 0:01:19]} 19. Kh1 {[%emt 0:00:20]} Ng4 {[%emt 0:00:49]} 20. Qd2 {[%emt 0:11:49]} Ne3 {[%emt 0:01:45]} 21. Rf3 {[%emt 0:01:02]} Nxg2 {[%emt 0:00:17]} 22. Kxg2 {[%emt 0:00:24]} Bg4 {[%emt 0:17:25]} 23. Rf2 {[%emt 0:00:54]} Rad8 {[%emt 0:00:22]} 24. h3 {[%emt 0:02:16]} Bc8 {[%emt 0:01:59]} 25. Rbf1 {[%emt 0:00:52]} f6 {[%emt 0:00:48]} 26. Qe2 {[%emt 0:09:47]} Qc7 {[%emt 0:01:52]} 27. g4 {[%emt 0:03:19]} Ne6 {[%emt 0:07:35]} 28. Ng6 {[%emt 0:06:33]} Qf7 {[%emt 0:03:11]} 29. f5 {[%emt 0:06:54]} Nf8 {[%emt 0:02:08]} 30. Nxf8 {[%emt 0:00:20]} Kxf8 {[%emt 0:01:34]} 31. h4 {[%emt 0:00:08]} b5 {[%emt 0:01:54]} 32. Rf3 {[%emt 0:02:05]} bxc4 {[%emt 0:00:21]} 33. dxc4 {[%emt 0:00:04]} d5 {[%emt 0:00:34]} 34. cxd5 {[%emt 0:01:37]} cxd5 {[%emt 0:00:05]} 35. Rg3 {[%emt 0:00:48]} dxe4 {[%emt 0:00:34]} 36. g5 {[%emt 0:00:24]} hxg5 {[%emt 0:00:43]} 37. hxg5 {[%emt 0:00:04]} fxg5 {[%emt 0:01:20]} 38. f6 {[%emt 0:00:56]} g6 {[%emt 0:00:16]} 39. Rxg5 {[%emt 0:02:41]} Rd3 {[%emt 0:01:55]} 40. Bxe5 {[%emt 0:00:00]} Bh3+ {[%emt 0:00:00]} 41. Kg1 {[%emt 0:02:49]} Bxf1 {[%emt 0:00:23]} 42. Qxf1 {[%emt 0:00:17]} Rd5 {[%emt 0:01:14]} 43. Bf4 {[%emt 0:03:49]} Rxg5+ {[%emt 0:00:51]} 44. Bxg5 {[%emt 0:00:05]} e3 {[%emt 0:00:27]} 45. Qe2 {[%emt 0:00:47]} Qc7 {[%emt 0:00:41]} 46. Kg2 {[%emt 0:02:08]} Qc6+ {[%emt 0:00:42]} 47. Kg1 {[%emt 0:00:49]} Qc1+ {[%emt 0:00:23]} 48. Kg2 {[%emt 0:00:09]} Qd2 {[%emt 0:00:06]} 49. Qxd2 {[%emt 0:00:19]} exd2 {[%emt 0:00:07]} 0-1

[Event "EYCC Open-U12 2019"]
[Site "Bratislava"]
[Date "2019.08.04"]
[Round "3.46"]
[White "Leal Prado, David Elias"]
[Black "De Reese, Elias"]
[Result "1-0"]
[ECO "B07"]
[WhiteElo "1741"]
[BlackElo "1850"]
[Annotator "NA"]
[PlyCount "65"]
[EventDate "2019.08.02"]
[EventType "swiss"]
[EventCountry "SVK"]
[SourceTitle "playchess.com"]
[Source "ChessBase"]
[SourceQuality "1"]
[TimeControl "40/5400+30:1800+30"]

1. e4 {[%emt 0:01:23]} d6 {[%emt 0:00:00]} 2. d4 {[%emt 0:00:10]} Nf6 {[%emt 0:00:00]} 3. Nc3 {[%emt 0:00:10]} Nbd7 {[%emt 0:00:00]} 4. Bc4 {[%emt 0:01:16]} e5 {[%emt 0:00:00]} 5. dxe5 {[%emt 0:05:41]} dxe5 {[%emt 0:00:10]} 6. Nf3 {[%emt 0:00:54]} Bc5 {[%emt 0:00:38]} 7. O-O {[%emt 0:02:47]} O-O {[%emt 0:00:41]} 8. Bg5 {[%emt 0:00:59]} c6 {[%emt 0:00:20]} 9. a3 {[%emt 0:06:42]} b5 {[%emt 0:01:30]} 10. Bb3 {[%emt 0:01:23]} Qc7 {[%emt 0:02:03]} 11. Qe2 {[%emt 0:03:49]} a5 {[%emt 0:02:05]} 12. Rfd1 {[%emt 0:05:21]} Ba6 {[%emt 0:01:26]} 13. Qe1 {[%emt 0:04:08]} Ng4 {[%emt 0:01:18]} 14. Bh4 {[%emt 0:00:25]} h6 {[%emt 0:13:43]} 15. Rd2 {[%emt 0:12:22]} Ngf6 {[%emt 0:16:38]} 16. Rad1 {[%emt 0:01:24]} b4 {[%emt 0:03:13]} 17. Na4 {[%emt 0:01:52]} Ba7 {[%emt 0:01:54]} 18. Rd6 {[%emt 0:04:33]} Bd4 {[%emt 0:13:35]} 19. Nxd4 {[%emt 0:11:49]} Qxd6 {[%emt 0:01:26]} 20. Ne6 {[%emt 0:02:43]} Qe7 {[%emt 0:08:24]} 21. Nxf8 {[%emt 0:00:26]} Kxf8 {[%emt 0:03:13]} 22. Rxd7 {[%emt 0:05:02]} Qxd7 {[%emt 0:04:38]} 23. Nb6 {[%emt 0:01:18]} Qb7 {[%emt 0:01:28]} 24. Nxa8 {[%emt 0:00:26]} c5 {[%emt 0:04:45]} 25. Bxf6 {[%emt 0:01:01]} gxf6 {[%emt 0:03:42]} 26. Bd5 {[%emt 0:00:19]} Qb8 {[%emt 0:04:31]} 27. Qe3 {[%emt 0:02:42]} Kg7 {[%emt 0:01:33]} 28. Qxc5 {[%emt 0:00:22]} bxa3 {[%emt 0:00:11]} 29. Qxa3 {[%emt 0:01:16]} Qb5 {[%emt 0:00:33]} 30. c4 {[%emt 0:00:57]} Qb8 {[%emt 0:00:38]} 31. Qe7 {[%emt 0:03:55]} Qg8 {[%emt 0:01:38]} 32. Nc7 {[%emt 0:01:38]} Bc8 {[%emt 0:00:16]} 33. Ne8+ {[%emt 0:00:26]} 1-0

[Event "EYCC Open-U12 2019"]
[Site "Bratislava"]
[Date "2019.08.04"]
[Round "3.47"]
[White "Hagner, Bennet"]
[Black "Suleymanov, Ali"]
[Result "1-0"]
[ECO "C99"]
[WhiteElo "1831"]
[BlackElo "1733"]
[Annotator "NA"]
[PlyCount "67"]
[EventDate "2019.08.02"]
[EventType "swiss"]
[EventCountry "SVK"]
[SourceTitle "playchess.com"]
[Source "ChessBase"]
[SourceQuality "1"]
[TimeControl "40/5400+30:1800+30"]

1. e4 {[%emt 0:00:00]} e5 {[%emt 0:00:00]} 2. Nf3 {[%emt 0:00:00]} Nc6 {[%emt 0:00:00]} 3. Bb5 {[%emt 0:00:00]} a6 {[%emt 0:00:00]} 4. Ba4 {[%emt 0:00:00]} Nf6 {[%emt 0:00:00]} 5. O-O {[%emt 0:00:00]} Be7 {[%emt 0:00:00]} 6. Re1 {[%emt 0:00:00]} b5 {[%emt 0:00:08]} 7. Bb3 {[%emt 0:00:04]} d6 {[%emt 0:00:39]} 8. c3 {[%emt 0:00:07]} O-O {[%emt 0:00:10]} 9. h3 {[%emt 0:00:08]} Na5 {[%emt 0:00:52]} 10. Bc2 {[%emt 0:00:32]} c5 {[%emt 0:00:06]} 11. d4 {[%emt 0:00:44]} Qc7 {[%emt 0:00:33]} 12. Nbd2 {[%emt 0:00:35]} cxd4 {[%emt 0:00:43]} 13. cxd4 {[%emt 0:00:02]} Nc6 {[%emt 0:00:11]} 14. Nb3 {[%emt 0:00:18]} a5 {[%emt 0:01:58]} 15. Be3 {[%emt 0:00:09]} a4 {[%emt 0:00:39]} 16. Nbd2 {[%emt 0:00:02]} a3 {[%emt 0:03:20]} 17. bxa3 {[%emt 0:03:02]} Rxa3 {[%emt 0:09:31]} 18. Qe2 {[%emt 0:11:38]} exd4 {[%emt 0:14:35]} 19. Bxd4 {[%emt 0:00:53]} b4 {[%emt 0:03:52]} 20. Bb2 {[%emt 0:07:53]} Ra8 {[%emt 0:04:24]} 21. Nb3 {[%emt 0:12:44]} Be6 {[%emt 0:06:53]} 22. Rac1 {[%emt 0:07:54]} Qb7 {[%emt 0:06:35]} 23. Bb1 {[%emt 0:01:44]} Nd7 {[%emt 0:03:46]} 24. Nfd4 {[%emt 0:09:55]} Nxd4 {[%emt 0:03:11]} 25. Nxd4 {[%emt 0:01:42]} Nc5 {[%emt 0:04:19]} 26. Nf5 {[%emt 0:03:06]} Bxf5 {[%emt 0:05:05]} 27. exf5 {[%emt 0:00:02]} Bd8 {[%emt 0:03:29]} 28. f6 {[%emt 0:02:50]} g6 {[%emt 0:05:31]} 29. Qd2 {[%emt 0:01:30]} Nd7 {[%emt 0:02:23]} 30. Be4 {[%emt 0:00:44]} Qa7 {[%emt 0:00:30]} 31. Bxa8 {[%emt 0:00:35]} Qxa8 {[%emt 0:00:03]} 32. Qxd6 {[%emt 0:00:32]} Qb7 {[%emt 0:00:18]} 33. Rcd1 {[%emt 0:00:27]} Nxf6 {[%emt 0:01:07]} 34. Bxf6 {[%emt 0:01:01]} 1-0

[Event "EYCC Open-U12 2019"]
[Site "Bratislava"]
[Date "2019.08.04"]
[Round "3.48"]
[White "Venkatesan, Kavin"]
[Black "Laturkar, Iraj"]
[Result "1-0"]
[ECO "A56"]
[WhiteElo "1797"]
[BlackElo "1488"]
[Annotator "NA"]
[PlyCount "61"]
[EventDate "2019.08.02"]
[EventType "swiss"]
[EventCountry "SVK"]
[SourceTitle "playchess.com"]
[Source "ChessBase"]
[SourceQuality "1"]
[TimeControl "40/5400+30:1800+30"]

1. d4 {[%emt 0:00:00]} Nf6 {[%emt 0:00:00]} 2. c4 {[%emt 0:00:00]} c5 {[%emt 0:00:44]} 3. e3 {[%emt 0:01:53]} e6 {[%emt 0:00:59]} 4. Nf3 {[%emt 0:02:04]} d5 {[%emt 0:01:04]} 5. Nc3 {[%emt 0:01:33]} Nc6 {[%emt 0:00:42]} 6. cxd5 {[%emt 0:01:54]} exd5 {[%emt 0:02:26]} 7. Bb5 {[%emt 0:01:02]} Bd7 {[%emt 0:05:15]} 8. dxc5 {[%emt 0:01:58]} Bxc5 {[%emt 0:01:22]} 9. O-O {[%emt 0:06:21]} a6 {[%emt 0:03:12]} 10. Bxc6 {[%emt 0:03:08]} bxc6 {[%emt 0:00:39]} 11. h3 {[%emt 0:00:08]} O-O {[%emt 0:00:10]} 12. b3 {[%emt 0:00:50]} Qc8 {[%emt 0:03:18]} 13. Na4 {[%emt 0:02:37]} Bd6 {[%emt 0:00:42]} 14. Nb6 {[%emt 0:00:27]} Qc7 {[%emt 0:00:43]} 15. Nxa8 {[%emt 0:00:05]} Rxa8 {[%emt 0:00:07]} 16. Bb2 {[%emt 0:00:16]} Ne4 {[%emt 0:00:40]} 17. Nd2 {[%emt 0:10:53]} Re8 {[%emt 0:06:05]} 18. Nxe4 {[%emt 0:03:37]} Rxe4 {[%emt 0:02:08]} 19. Qd3 {[%emt 0:03:52]} Qc8 {[%emt 0:02:49]} 20. Qe2 {[%emt 0:08:53]} Bxh3 {[%emt 0:11:37]} 21. f3 {[%emt 0:20:45]} Rh4 {[%emt 0:00:47]} 22. gxh3 {[%emt 0:01:32]} Qxh3 {[%emt 0:00:16]} 23. Qg2 {[%emt 0:00:10]} Bh2+ {[%emt 0:01:22]} 24. Kf2 {[%emt 0:00:07]} Qxg2+ {[%emt 0:08:07]} 25. Kxg2 {[%emt 0:01:03]} Bd6 {[%emt 0:03:47]} 26. Rh1 {[%emt 0:00:54]} Rb4 {[%emt 0:00:13]} 27. Ba3 {[%emt 0:00:06]} a5 {[%emt 0:00:59]} 28. Bxb4 {[%emt 0:00:11]} axb4 {[%emt 0:00:08]} 29. Rac1 {[%emt 0:00:11]} c5 {[%emt 0:00:29]} 30. Rhd1 {[%emt 0:00:04]} d4 {[%emt 0:03:57]} 31. exd4 {[%emt 0:00:13]} 1-0

[Event "EYCC Open-U12 2019"]
[Site "Bratislava"]
[Date "2019.08.04"]
[Round "3.49"]
[White "Clotet Mas, Dan"]
[Black "Zlatkov, Anton"]
[Result "0-1"]
[ECO "B50"]
[WhiteElo "1488"]
[BlackElo "1782"]
[Annotator "NA"]
[PlyCount "110"]
[EventDate "2019.08.02"]
[EventType "swiss"]
[EventCountry "SVK"]
[SourceTitle "playchess.com"]
[Source "ChessBase"]
[SourceQuality "1"]
[TimeControl "40/5400+30:1800+30"]

1. e4 {[%emt 0:00:00]} c5 {[%emt 0:00:00]} 2. Nf3 {[%emt 0:00:00]} d6 {[%emt 0:00:00]} 3. c3 {[%emt 0:00:00]} Nf6 {[%emt 0:01:13]} 4. Bd3 {[%emt 0:00:00]} Bg4 {[%emt 0:00:50]} 5. Bc2 {[%emt 0:01:11]} e5 {[%emt 0:08:26]} 6. d3 {[%emt 0:04:20]} Nc6 {[%emt 0:01:11]} 7. Nbd2 {[%emt 0:00:41]} Be7 {[%emt 0:01:35]} 8. h3 {[%emt 0:00:50]} Bh5 {[%emt 0:00:15]} 9. Nf1 {[%emt 0:01:50]} O-O {[%emt 0:02:26]} 10. Ng3 {[%emt 0:00:09]} Bg6 {[%emt 0:00:51]} 11. Bd2 {[%emt 0:11:25]} d5 {[%emt 0:07:04]} 12. h4 {[%emt 0:08:36]} h6 {[%emt 0:12:03]} 13. h5 {[%emt 0:04:13]} Bh7 {[%emt 0:00:03]} 14. Qc1 {[%emt 0:01:37]} Qd7 {[%emt 0:09:41]} 15. O-O {[%emt 0:13:00]} Rfd8 {[%emt 0:02:44]} 16. Re1 {[%emt 0:05:37]} b5 {[%emt 0:05:57]} 17. exd5 {[%emt 0:06:00]} Qxd5 {[%emt 0:01:06]} 18. c4 {[%emt 0:00:32]} bxc4 {[%emt 0:04:33]} 19. dxc4 {[%emt 0:00:48]} Qd6 {[%emt 0:01:45]} 20. Bc3 {[%emt 0:05:57]} Nd7 {[%emt 0:10:31]} 21. Ba4 {[%emt 0:05:26]} f6 {[%emt 0:05:28]} 22. Bc2 {[%emt 0:02:11]} Bf8 {[%emt 0:03:20]} 23. Bxh7+ {[%emt 0:01:37]} Kxh7 {[%emt 0:00:07]} 24. Qc2+ {[%emt 0:00:38]} Kg8 {[%emt 0:01:37]} 25. Rad1 {[%emt 0:01:16]} Nd4 {[%emt 0:01:51]} 26. Bxd4 {[%emt 0:00:21]} exd4 {[%emt 0:03:21]} 27. Qg6 {[%emt 0:00:38]} Ne5 {[%emt 0:03:42]} 28. Nxe5 {[%emt 0:01:18]} fxe5 {[%emt 0:00:05]} 29. Qg4 {[%emt 0:00:44]} Re8 {[%emt 0:01:54]} 30. Nf5 {[%emt 0:01:48]} Qf6 {[%emt 0:01:20]} 31. Rd3 {[%emt 0:03:18]} Re6 {[%emt 0:05:18]} 32. Re4 {[%emt 0:05:15]} Rae8 {[%emt 0:00:43]} 33. Rb3 {[%emt 0:05:54]} g6 {[%emt 0:01:59]} 34. Nh4 {[%emt 0:01:38]} g5 {[%emt 0:00:26]} 35. Nf5 {[%emt 0:00:45]} Rb6 {[%emt 0:00:35]} 36. Rxb6 {[%emt 0:01:46]} axb6 {[%emt 0:00:32]} 37. f4 {[%emt 0:03:10]} Re6 {[%emt 0:02:00]} 38. Nh4 {[%emt 0:01:35]} Kh7 {[%emt 0:00:38]} 39. f5 {[%emt 0:00:15]} Re8 {[%emt 0:00:22]} 40. Ng6 {[%emt 0:00:00]} Bd6 {[%emt 0:00:00]} 41. Qf3 {[%emt 0:00:52]} Kg7 {[%emt 0:10:06]} 42. g4 {[%emt 0:00:20]} Qf7 {[%emt 0:00:33]} 43. Qb3 {[%emt 0:00:15]} Qb7 {[%emt 0:01:52]} 44. Qf3 {[%emt 0:01:38]} Kf6 {[%emt 0:01:25]} 45. Qd3 {[%emt 0:02:28]} b5 {[%emt 0:03:26]} 46. b3 {[%emt 0:05:16]} bxc4 {[%emt 0:00:15]} 47. bxc4 {[%emt 0:00:05]} Ra8 {[%emt 0:02:34]} 48. Re2 {[%emt 0:00:49]} Ra4 {[%emt 0:03:40]} 49. Qg3 {[%emt 0:08:15]} Rxa2 {[%emt 0:03:56]} 50. Rxe5 {[%emt 0:07:18]} Ra1+ {[%emt 0:01:09]} 51. Kf2 {[%emt 0:01:22]} Qb2+ {[%emt 0:00:19]} 52. Kf3 {[%emt 0:00:21]} Ra3+ {[%emt 0:00:40]} 53. Ke4 {[%emt 0:00:08]} Qb7+ {[%emt 0:01:30]} 54. Rd5 {[%emt 0:00:16]} Rxg3 {[%emt 0:00:28]} 55. Nh4 gxh4 0-1

[Event "EYCC Open-U12 2019"]
[Site "Bratislava"]
[Date "2019.08.04"]
[Round "3.50"]
[White "Lye, Sverre"]
[Black "Cappan, Pjotr"]
[Result "1-0"]
[ECO "C54"]
[WhiteElo "1839"]
[BlackElo "1601"]
[Annotator "NA"]
[PlyCount "57"]
[EventDate "2019.08.02"]
[EventType "swiss"]
[EventCountry "SVK"]
[SourceTitle "playchess.com"]
[Source "ChessBase"]
[SourceQuality "1"]
[TimeControl "40/5400+30:1800+30"]

1. e4 {[%emt 0:00:00]} e5 {[%emt 0:00:00]} 2. Nf3 {[%emt 0:00:00]} Nc6 {[%emt 0:00:00]} 3. Bc4 {[%emt 0:00:09]} Bc5 {[%emt 0:00:00]} 4. c3 {[%emt 0:00:34]} Nf6 {[%emt 0:00:00]} 5. d3 {[%emt 0:00:20]} d6 {[%emt 0:00:15]} 6. O-O {[%emt 0:00:55]} a6 {[%emt 0:00:09]} 7. Bb3 {[%emt 0:00:57]} Ba7 {[%emt 0:00:13]} 8. Nbd2 {[%emt 0:02:01]} h6 {[%emt 0:00:19]} 9. h3 {[%emt 0:00:42]} g5 {[%emt 0:00:24]} 10. Nc4 {[%emt 0:09:24]} g4 {[%emt 0:01:59]} 11. hxg4 {[%emt 0:02:10]} Bxg4 {[%emt 0:01:19]} 12. Ne3 {[%emt 0:02:40]} Bxe3 {[%emt 0:25:38]} 13. fxe3 {[%emt 0:04:27]} Qe7 {[%emt 0:05:40]} 14. Ba4 {[%emt 0:04:06]} h5 {[%emt 0:16:37]} 15. Qc2 {[%emt 0:11:13]} h4 {[%emt 0:06:45]} 16. Qf2 {[%emt 0:08:31]} h3 {[%emt 0:19:06]} 17. g3 {[%emt 0:02:41]} O-O-O {[%emt 0:04:58]} 18. Nh2 {[%emt 0:05:12]} Rh6 {[%emt 0:02:15]} 19. Bxc6 {[%emt 0:06:34]} bxc6 {[%emt 0:00:15]} 20. Bd2 {[%emt 0:01:58]} Be6 {[%emt 0:01:34]} 21. b4 {[%emt 0:05:31]} Rg8 {[%emt 0:01:49]} 22. Kh1 {[%emt 0:03:49]} Bc4 {[%emt 0:08:38]} 23. dxc4 {[%emt 0:02:52]} Kb7 {[%emt 0:01:28]} 24. Qf3 {[%emt 0:02:37]} Rhg6 {[%emt 0:00:21]} 25. Be1 {[%emt 0:01:40]} Qe6 {[%emt 0:01:17]} 26. c5 {[%emt 0:01:50]} d5 {[%emt 0:00:06]} 27. exd5 {[%emt 0:01:39]} cxd5 {[%emt 0:00:05]} 28. c4 {[%emt 0:00:52]} Ne4 {[%emt 0:01:31]} 29. g4 {[%emt 0:06:50]} 1-0

[Event "EYCC Open-U12 2019"]
[Site "Bratislava"]
[Date "2019.08.04"]
[Round "3.51"]
[White "Knudsen, Philip Uhre"]
[Black "Hald Falkesgaard, Jeppe"]
[Result "0-1"]
[ECO "B47"]
[WhiteElo "1590"]
[BlackElo "1815"]
[Annotator "NA"]
[PlyCount "40"]
[EventDate "2019.08.02"]
[EventType "swiss"]
[EventCountry "SVK"]
[SourceTitle "playchess.com"]
[Source "ChessBase"]
[SourceQuality "1"]
[TimeControl "40/5400+30:1800+30"]

1. e4 {[%emt 0:00:00]} c5 {[%emt 0:00:00]} 2. Nf3 {[%emt 0:00:00]} e6 {[%emt 0:00:00]} 3. d4 {[%emt 0:00:00]} cxd4 {[%emt 0:00:00]} 4. Nxd4 {[%emt 0:00:07]} Nc6 {[%emt 0:00:14]} 5. Nc3 {[%emt 0:00:32]} Qc7 {[%emt 0:00:32]} 6. f4 {[%emt 0:00:09]} a6 {[%emt 0:00:28]} 7. Nxc6 {[%emt 0:00:31]} bxc6 {[%emt 0:00:11]} 8. Bd3 {[%emt 0:00:26]} Bc5 {[%emt 0:01:48]} 9. e5 {[%emt 0:03:09]} Ne7 {[%emt 0:11:02]} 10. Ne4 {[%emt 0:04:57]} Ng6 {[%emt 0:00:28]} 11. Qf3 {[%emt 0:08:22]} Be7 {[%emt 0:03:30]} 12. O-O {[%emt 0:02:20]} Bb7 {[%emt 0:02:49]} 13. Be3 {[%emt 0:08:44]} c5 {[%emt 0:13:56]} 14. f5 {[%emt 0:12:59]} Nh4 {[%emt 0:07:38]} 15. Qg3 {[%emt 0:02:52]} Nxf5 {[%emt 0:01:05]} 16. Rxf5 {[%emt 0:00:13]} exf5 {[%emt 0:02:41]} 17. Qxg7 {[%emt 0:00:37]} O-O-O {[%emt 0:00:37]} 18. Nf6 {[%emt 0:05:51]} Qxe5 {[%emt 0:02:37]} 19. Bg5 {[%emt 0:02:28]} Rhg8 {[%emt 0:05:49]} 20. Qh6 {[%emt 0:00:12]} Rg6 {[%emt 0:00:41]} 0-1

[Event "EYCC Open-U12 2019"]
[Site "Bratislava"]
[Date "2019.08.04"]
[Round "3.52"]
[White "Guia, Artur Solovyov Eloy"]
[Black "Ortiz Padro, Pol"]
[Result "1/2-1/2"]
[ECO "A80"]
[WhiteElo "1790"]
[BlackElo "1546"]
[Annotator "NA"]
[PlyCount "114"]
[EventDate "2019.08.02"]
[EventType "swiss"]
[EventCountry "SVK"]
[SourceTitle "playchess.com"]
[Source "ChessBase"]
[SourceQuality "1"]
[TimeControl "40/5400+30:1800+30"]

1. d4 {[%emt 0:00:00]} f5 {[%emt 0:00:00]} 2. Nc3 {[%emt 0:00:00]} Nf6 {[%emt 0:00:03]} 3. Bf4 {[%emt 0:00:00]} e6 {[%emt 0:00:35]} 4. Qd2 {[%emt 0:02:36]} b6 {[%emt 0:00:28]} 5. d5 {[%emt 0:01:54]} exd5 {[%emt 0:03:23]} 6. Nxd5 {[%emt 0:00:42]} d6 {[%emt 0:00:57]} 7. Qe3+ {[%emt 0:02:26]} Kf7 {[%emt 0:02:03]} 8. Bg5 {[%emt 0:15:05]} Be7 {[%emt 0:03:00]} 9. Nxe7 {[%emt 0:12:54]} Qxe7 {[%emt 0:01:50]} 10. Qxe7+ {[%emt 0:00:10]} Kxe7 {[%emt 0:00:08]} 11. Nf3 {[%emt 0:00:05]} h6 {[%emt 0:00:27]} 12. Bxf6+ {[%emt 0:00:10]} Kxf6 {[%emt 0:00:14]} 13. Nd4 {[%emt 0:00:08]} Bb7 {[%emt 0:01:28]} 14. O-O-O {[%emt 0:00:52]} Nc6 {[%emt 0:01:24]} 15. Nb5 Rac8 {[%emt 0:00:23]} 16. e3 {[%emt 0:02:14]} a6 {[%emt 0:00:16]} 17. Nc3 {[%emt 0:01:56]} Ne5 {[%emt 0:05:46]} 18. Nd5+ {[%emt 0:01:11]} Ke6 {[%emt 0:03:43]} 19. Nf4+ {[%emt 0:02:50]} Kf6 {[%emt 0:00:23]} 20. Nh5+ {[%emt 0:04:50]} Kf7 {[%emt 0:01:44]} 21. Ng3 {[%emt 0:04:38]} Kf6 {[%emt 0:00:52]} 22. h3 {[%emt 0:08:55]} g6 {[%emt 0:02:44]} 23. Rg1 {[%emt 0:01:02]} Rhe8 {[%emt 0:02:48]} 24. Ne2 {[%emt 0:02:06]} Nd7 {[%emt 0:12:57]} 25. Nf4 {[%emt 0:01:58]} g5 {[%emt 0:02:51]} 26. Nd5+ {[%emt 0:00:06]} Kg6 {[%emt 0:01:05]} 27. Be2 {[%emt 0:03:46]} Nf6 {[%emt 0:08:44]} 28. Nxf6 Kxf6 {[%emt 0:00:44]} 29. Bh5 {[%emt 0:01:32]} Re7 {[%emt 0:02:00]} 30. g3 {[%emt 0:00:20]} Rg8 {[%emt 0:01:22]} 31. Be2 {[%emt 0:01:21]} g4 {[%emt 0:01:12]} 32. h4 {[%emt 0:00:23]} h5 {[%emt 0:00:12]} 33. Bc4 {[%emt 0:00:04]} Rd8 {[%emt 0:00:26]} 34. Rd4 {[%emt 0:00:38]} Re4 {[%emt 0:00:46]} 35. Rgd1 {[%emt 0:00:42]} Rde8 {[%emt 0:01:40]} 36. a3 {[%emt 0:01:24]} Rxd4 {[%emt 0:00:55]} 37. Rxd4 {[%emt 0:00:05]} Re4 {[%emt 0:00:19]} 38. Rxe4 {[%emt 0:00:09]} fxe4 {[%emt 0:00:31]} 39. Kd2 {[%emt 0:00:34]} d5 {[%emt 0:00:08]} 40. Be2 {[%emt 0:00:00]} Ke5 {[%emt 0:00:00]} 41. Kc3 {[%emt 0:01:28]} Bc8 {[%emt 0:01:08]} 42. a4 {[%emt 0:00:55]} c6 {[%emt 0:00:54]} 43. Kb4 {[%emt 0:02:28]} Kd6 {[%emt 0:02:44]} 44. c4 {[%emt 0:02:29]} a5+ {[%emt 0:01:10]} 45. Kc3 {[%emt 0:00:07]} Bd7 {[%emt 0:00:55]} 46. cxd5 {[%emt 0:08:07]} cxd5 {[%emt 0:02:10]} 47. b3 {[%emt 0:00:15]} Kc5 {[%emt 0:00:29]} 48. Ba6 {[%emt 0:00:52]} Be8 {[%emt 0:01:16]} 49. Bc8 {[%emt 0:01:22]} Bf7 {[%emt 0:00:18]} 50. Bd7 {[%emt 0:00:33]} Bg6 {[%emt 0:00:14]} 51. Be6 {[%emt 0:00:55]} Be8 {[%emt 0:00:15]} 52. Bf5 {[%emt 0:03:20]} Bf7 {[%emt 0:00:10]} 53. Bc8 {[%emt 0:00:54]} Be8 {[%emt 0:00:19]} 54. Be6 {[%emt 0:00:12]} Bg6 {[%emt 0:00:11]} 55. Bc8 {[%emt 0:03:59]} Be8 {[%emt 0:00:44]} 56. Bf5 {[%emt 0:00:15]} Bf7 {[%emt 0:00:06]} 57. Bd7 {[%emt 0:00:05]} Bg6 {[%emt 0:00:06]} 1/2-1/2

[Event "EYCC Open-U12 2019"]
[Site "Bratislava"]
[Date "2019.08.04"]
[Round "3.53"]
[White "Grishin, Petr E."]
[Black "Krawczyk, Flawian"]
[Result "1/2-1/2"]
[ECO "B92"]
[WhiteElo "1506"]
[BlackElo "1848"]
[Annotator "NA"]
[PlyCount "84"]
[EventDate "2019.08.02"]
[EventType "swiss"]
[EventCountry "SVK"]
[SourceTitle "playchess.com"]
[Source "ChessBase"]
[SourceQuality "1"]
[TimeControl "40/5400+30:1800+30"]

1. e4 {[%emt 0:01:21]} c5 {[%emt 0:00:00]} 2. Nf3 {[%emt 0:00:07]} d6 {[%emt 0:00:00]} 3. d4 {[%emt 0:00:06]} cxd4 {[%emt 0:00:00]} 4. Nxd4 {[%emt 0:00:05]} Nf6 {[%emt 0:00:00]} 5. Nc3 {[%emt 0:00:03]} a6 {[%emt 0:00:38]} 6. Be2 {[%emt 0:00:09]} e5 {[%emt 0:00:08]} 7. Nb3 {[%emt 0:00:07]} Be7 {[%emt 0:00:03]} 8. Be3 {[%emt 0:00:22]} Be6 {[%emt 0:00:05]} 9. Nd5 {[%emt 0:02:05]} Nbd7 {[%emt 0:01:46]} 10. Qd3 {[%emt 0:01:24]} O-O {[%emt 0:01:00]} 11. O-O-O {[%emt 0:00:54]} Bxd5 {[%emt 0:00:51]} 12. exd5 {[%emt 0:00:08]} b5 {[%emt 0:01:05]} 13. Kb1 {[%emt 0:01:14]} Nb6 {[%emt 0:00:57]} 14. Bxb6 {[%emt 0:01:49]} Qxb6 {[%emt 0:00:06]} 15. f4 {[%emt 0:01:44]} b4 {[%emt 0:06:24]} 16. Nd2 {[%emt 0:02:41]} exf4 {[%emt 0:01:49]} 17. Nc4 {[%emt 0:01:15]} Qc5 {[%emt 0:02:04]} 18. Rhf1 {[%emt 0:01:43]} Nd7 {[%emt 0:05:43]} 19. Qf5 {[%emt 0:05:22]} Nb6 {[%emt 0:04:54]} 20. Nxb6 {[%emt 0:00:52]} Qxb6 {[%emt 0:00:01]} 21. Rxf4 {[%emt 0:01:00]} g6 {[%emt 0:01:35]} 22. Qg4 {[%emt 0:03:45]} a5 {[%emt 0:07:05]} 23. Rdf1 {[%emt 0:01:04]} Qe3 {[%emt 0:02:43]} 24. Re4 {[%emt 0:05:10]} Qg5 {[%emt 0:00:06]} 25. Qd7 {[%emt 0:00:59]} Bf6 {[%emt 0:03:42]} 26. Ref4 {[%emt 0:03:07]} Rad8 {[%emt 0:06:24]} 27. Qb7 {[%emt 0:01:05]} Bg7 {[%emt 0:16:11]} 28. Rxf7 {[%emt 0:03:27]} Qe5 {[%emt 0:00:09]} 29. Rxf8+ {[%emt 0:00:07]} Rxf8 {[%emt 0:00:04]} 30. Rxf8+ {[%emt 0:00:08]} Kxf8 {[%emt 0:00:21]} 31. Qc8+ {[%emt 0:00:36]} Ke7 {[%emt 0:00:51]} 32. Qe6+ {[%emt 0:07:25]} Qxe6 {[%emt 0:01:59]} 33. dxe6 {[%emt 0:00:06]} Kxe6 {[%emt 0:00:04]} 34. a3 {[%emt 0:00:23]} bxa3 {[%emt 0:01:06]} 35. bxa3 {[%emt 0:00:27]} Bc3 {[%emt 0:00:04]} 36. Ka2 {[%emt 0:00:46]} d5 {[%emt 0:00:02]} 37. Kb3 {[%emt 0:00:13]} d4 {[%emt 0:00:06]} 38. Kc4 {[%emt 0:00:38]} Ke5 {[%emt 0:00:02]} 39. Bf3 {[%emt 0:00:46]} h5 {[%emt 0:00:38]} 40. a4 {[%emt 0:00:00]} Kf4 {[%emt 0:00:00]} 41. Kd3 {[%emt 0:00:30]} h4 {[%emt 0:00:56]} 42. h3 {[%emt 0:00:26]} g5 {[%emt 0:00:08]} 1/2-1/2